bitfinex/quotes_SOLUSD_20250313
["timestamp","ask_amount","ask_price","bid_price","bid_amount"]
[1741838458374,0.063,125.37,125.36,180.38917717]
[1741838462653,23.8000344,125.37,125.36,180.38917717]
[1741838463960,23.8000344,125.37,125.36,82.33703017]
[1741838464585,8.0393,125.37,125.36,82.33703017]
[1741838464791,31.7763344,125.37,125.36,82.33703017]
[1741838469185,8.0393,125.37,125.36,82.33703017]
[1741838469374,8.0393,125.37,125.36,82.36703017]
[1741838472982,0.063,125.37,125.36,82.36703017]
[1741838474461,0.063,125.37,125.36,180.41917717]
[1741838474681,0.063,125.37,125.36,195.61664389]
[1741838475387,0.063,125.37,125.36,180.41917717]
[1741838475759,0.063,125.37,125.36,82.36703017]
[1741838475965,15.26046672,125.37,125.36,82.36703017]
[1741838476165,0.063,125.37,125.36,82.36703017]
[1741838476684,8.0393,125.37,125.36,82.36703017]
[1741838478594,50.43926285,125.37,125.36,82.36703017]
[1741838479673,50.58142442,125.37,125.36,3.017e-05]
[1741838479989,50.58142442,125.37,125.35,0.03]
[1741838479990,18.933972,125.36,125.35,3.017e-05]
[1741838480195,49.90428599,125.36,125.35,3.017e-05]
[1741838480580,57.88128599,125.36,125.35,3.017e-05]
[1741838480784,0.28432314,125.35,125.3,82.43]
[1741838480981,23.75031399,125.33,125.3,82.43]
[1741838481185,23.75031399,125.34,125.3,180.482147]
[1741838481773,23.75031399,125.35,125.3,204.23246099]
[1741838482079,33.84664886,125.36,125.35,0.03]
[1741838482292,7.977,125.36,125.35,82.43]
[1741838482601,8.0395,125.37,125.35,82.43]
[1741838483922,24.03463713,125.36,125.3,180.482147]
[1741838484070,24.03463713,125.34,125.3,82.43]
[1741838484274,23.75031399,125.35,125.3,82.43]
[1741838484474,23.75031399,125.35,125.3,106.18031399]
[1741838485198,7.9782,125.34,125.3,106.18031399]
[1741838485400,31.72851399,125.34,125.3,82.43]
[1741838486507,7.9782,125.34,125.3,82.43]
[1741838487394,7.9782,125.34,125.3,180.482147]
[1741838489108,31.72851399,125.34,125.3,180.482147]
[1741838489409,51.67421399,125.34,125.3,180.482147]
[1741838489611,23.75031399,125.33,125.3,180.482147]
[1741838490101,51.67421399,125.34,125.3,180.482147]
[1741838490409,7.9782,125.34,125.3,180.482147]
[1741838490609,23.75031399,125.32,125.3,82.43]
[1741838490789,23.75031399,125.33,125.3,82.43]
[1741838491911,31.72931399,125.33,125.3,82.43]
[1741838492889,7.979,125.33,125.3,82.43]
[1741838495708,7.9785,125.34,125.3,180.482147]
[1741838496112,31.72881399,125.34,125.3,180.482147]
[1741838496518,23.75031399,125.32,125.3,180.482147]
[1741838496815,7.9785,125.34,125.3,180.482147]
[1741838497118,7.9785,125.34,125.3,204.23246099]
[1741838497321,31.72881399,125.34,125.3,180.482147]
[1741838497618,7.9785,125.34,125.3,180.482147]
[1741838498006,25.86964886,125.36,125.3,188.462947]
[1741838498319,7.9772,125.36,125.32,23.75031399]
[1741838498890,26.68914886,125.37,125.32,23.75031399]
[1741838499090,8.0395,125.37,125.33,23.75031399]
[1741838499317,8.0395,125.37,125.33,204.20246099]
[1741838500613,0.063,125.37,125.33,204.20246099]
[1741838500797,0.063,125.37,125.34,23.75031399]
[1741838501116,0.063,125.37,125.33,204.20246099]
[1741838501619,0.063,125.37,125.34,23.75031399]
[1741838502495,0.063,125.37,125.34,204.20246099]
[1741838502690,0.063,125.37,125.35,23.75031399]
[1741838503715,0.063,125.38,125.37,83.8843]
[1741838503891,0.063,125.38,125.37,254.80414698]
[1741838504093,0.063,125.39,125.37,256.80414698]
[1741838504411,0.063,125.42,125.41,28.11596157]
[1741838504603,0.063,125.42,125.41,51.86627556]
[1741838504909,0.063,125.42,125.41,43.75031399]
[1741838505209,0.063,125.42,125.41,224.13946099]
[1741838505605,0.063,125.42,125.41,200.389147]
[1741838506296,0.063,125.42,125.41,82.337]
[1741838506597,42.46296285,125.42,125.41,82.337]
[1741838506804,42.46296285,125.42,125.36,211.14]
[1741838506805,18.64964886,125.41,125.36,180.389147]
[1741838507111,23.75031399,125.39,125.36,82.337]
[1741838507311,18.64964886,125.38,125.36,82.337]
[1741838507526,23.75031399,125.38,125.36,82.337]
[1741838507706,23.75031399,125.39,125.36,82.337]
[1741838507911,42.39996285,125.4,125.36,82.337]
[1741838508424,7.9744,125.4,125.36,204.13946099]
[1741838508601,23.81331399,125.42,125.37,23.75031399]
[1741838508928,7.9739,125.41,125.36,180.389147]
[1741838509109,7.9739,125.41,125.36,204.13946099]
[1741838511004,7.9739,125.41,125.37,23.75031399]
[1741838511599,0.063,125.42,125.38,23.75031399]
[1741838511924,8.0363,125.42,125.38,23.75031399]
[1741838512120,0.063,125.42,125.4,23.75031399]
[1741838512423,0.063,125.42,125.41,23.75031399]
[1741838512611,0.063,125.42,125.41,204.13946099]
[1741838514530,0.063,125.43,125.42,82.274]
[1741838514718,0.063,125.43,125.42,106.02431399]
[1741838515409,0.063,125.43,125.42,124.95828599]
[1741838515728,0.063,125.43,125.42,126.15355141]
[1741838516831,0.063,125.43,125.42,134.12675141]
[1741838520542,0.063,125.49,125.47,82.274]
[1741838520729,0.063,125.49,125.48,23.75031399]
[1741838521708,0.063,125.49,125.48,33.05662405]
[1741838523519,0.063,125.49,125.48,31.86177556]
[1741838523719,0.063,125.49,125.48,51.84833761]
[1741838525226,0.063,125.49,125.48,25.08722718]
[1741838525427,0.063,125.51,125.5,82.148]
[1741838525630,0.063,125.51,125.5,180.200147]
[1741838528047,23.81331399,125.51,125.5,82.148]
[1741838529738,31.78071399,125.51,125.5,82.148]
[1741838530141,0.063,125.51,125.5,82.148]
[1741838530527,8.0304,125.51,125.5,82.148]
[1741838531239,8.0304,125.51,125.5,180.200147]
[1741838531441,23.81331399,125.51,125.5,180.200147]
[1741838531650,0.063,125.51,125.5,180.200147]
[1741838532539,23.81331399,125.51,125.5,82.148]
[1741838532850,24.09763713,125.51,125.5,82.148]
[1741838533051,23.81331399,125.51,125.5,82.148]
[1741838533345,42.46296285,125.51,125.5,82.148]
[1741838533726,50.71468599,125.51,125.5,82.148]
[1741838534832,50.43036285,125.51,125.5,82.148]
[1741838535425,50.71468599,125.51,125.5,82.148]
[1741838535761,50.43036285,125.51,125.5,82.148]
[1741838536274,50.71468599,125.51,125.5,82.148]
[1741838540358,18.933972,125.5,125.45,180.200147]
[1741838540561,23.75031399,125.48,125.45,180.200147]
[1741838541462,23.75031399,125.49,125.45,180.200147]
[1741838541767,23.75031399,125.49,125.45,180.230147]
[1741838542274,7.9693,125.48,125.45,180.230147]
[1741838548648,7.969,125.49,125.45,180.230147]
[1741838548858,7.969,125.49,125.45,203.98046099]
[1741838549234,42.46296285,125.51,125.46,23.75031399]
[1741838549450,42.46296285,125.51,125.46,203.95046099]
[1741838549650,0.063,125.51,125.47,23.75031399]
[1741838549929,0.063,125.51,125.48,23.75031399]
[1741838551162,0.063,125.51,125.47,23.75031399]
[1741838551554,0.063,125.51,125.46,205.46016099]
[1741838553440,0.063,125.51,125.47,0.03]
[1741838554657,0.063,125.51,125.47,180.230147]
[1741838558457,0.063,125.52,125.51,82.085]
[1741838558665,0.063,125.52,125.51,195.30378656]
[1741838559042,0.063,125.52,125.51,180.137147]
[1741838560543,0.063,125.52,125.51,203.81871474]
[1741838561343,0.063,125.52,125.51,211.78611474]
[1741838564265,0.063,125.52,125.51,203.81871474]
[1741838565370,0.063,125.52,125.51,211.78611474]
[1741838565871,0.063,125.52,125.51,203.81871474]
[1741838566487,0.063,125.55,125.53,81.959]
[1741838566675,0.063,125.55,125.53,180.011147]
[1741838567570,0.063,125.55,125.53,203.69271474]
[1741838567871,0.063,125.55,125.53,211.65871474]
[1741838568674,0.063,125.55,125.54,23.68156774]
[1741838569371,0.063,125.55,125.54,129.84137631]
[1741838569943,0.063,125.55,125.54,136.30770524]
[1741838570157,0.063,125.55,125.54,129.84137631]
[1741838570761,0.063,125.55,125.54,148.63318674]
[1741838571469,0.063,125.55,125.54,121.87587631]
[1741838572776,0.063,125.55,125.54,129.84137631]
[1741838573471,7.9624,125.59,125.57,81.833]
[1741838573669,31.64396774,125.59,125.57,179.885147]
[1741838575261,7.9624,125.59,125.57,179.885147]
[1741838576961,7.9924,125.59,125.57,179.885147]
[1741838579881,0.03,125.59,125.57,179.885147]
[1741838581895,23.68156774,125.58,125.57,179.885147]
[1741838582310,33.8294574,125.59,125.57,179.885147]
[1741838584063,7.963,125.58,125.57,179.885147]
[1741838584270,0.03,125.59,125.57,179.885147]
[1741838584479,7.9924,125.59,125.57,179.885147]
[1741838584780,0.03,125.59,125.57,179.885147]
[1741838585085,0.03,125.59,125.57,203.54870912]
[1741838585685,8.0236,125.62,125.6,81.803]
[1741838585871,8.0236,125.62,125.6,179.855147]
[1741838586081,31.68716212,125.62,125.6,179.855147]
[1741838586477,8.0236,125.62,125.6,179.855147]
[1741838586785,42.31321098,125.61,125.6,179.855147]
[1741838587485,0.28432314,125.6,125.56,136.370447]
[1741838587686,23.66356212,125.59,125.56,136.370447]
[1741838588288,18.79181043,125.61,125.56,136.370447]
[1741838588467,7.9617,125.6,125.56,160.03400912]
[1741838588774,7.9613,125.61,125.57,23.66356212]
[1741838588996,7.9613,125.61,125.57,160.03400912]
[1741838589174,8.0236,125.62,125.58,23.66356212]
[1741838589376,8.0236,125.62,125.58,160.03400912]
[1741838597698,23.66356212,125.63,125.58,160.03400912]
[1741838597699,0.063,125.64,125.62,38.2553]
[1741838597904,0.063,125.64,125.62,159.97100912]
[1741838598211,8.0224,125.64,125.62,136.307447]
[1741838598898,0.063,125.64,125.62,136.307447]
[1741838602988,23.72656212,125.64,125.62,136.307447]
[1741838603588,7.9598,125.63,125.62,136.307447]
[1741838604194,31.62336212,125.63,125.62,38.2553]
[1741838604401,23.09902351,125.63,125.62,38.2553]
[1741838606309,23.65707614,125.63,125.62,38.2553]
[1741838607100,31.67927614,125.64,125.62,38.2553]
[1741838607295,23.65707614,125.63,125.62,38.2553]
[1741838607499,31.67927614,125.64,125.62,173.4553]
[1741838610214,23.65707614,125.63,125.62,173.4553]
[1741838610717,7.9598,125.63,125.62,173.4553]
[1741838611913,31.67957614,125.64,125.62,173.4553]
[1741838612406,42.59104814,125.63,125.62,133.1791]
[1741838612612,42.59104814,125.63,125.62,49.8364]
[1741838612990,42.306725,125.63,125.62,49.8364]
[1741838613213,42.59104814,125.63,125.62,49.8364]
[1741838613793,50.55084814,125.63,125.62,0.0001]
[1741838614615,50.58084814,125.63,125.62,0.0001]
[1741838621899,50.296525,125.63,125.62,0.0001]
[1741838622098,7.9898,125.63,125.62,0.0001]
[1741838622616,7.9898,125.63,125.62,82.4001]
[1741838622792,0.03,125.63,125.62,82.4001]
[1741838623908,42.336725,125.63,125.62,82.4001]
[1741838624416,0.28432314,125.62,125.59,41.024]
[1741838624714,23.65707614,125.61,125.59,41.024]
[1741838625512,7.9611,125.61,125.59,41.024]
[1741838627514,15.14160777,125.61,125.59,41.024]
[1741838629503,23.10210777,125.62,125.59,41.024]
[1741838632302,7.9605,125.62,125.59,41.024]
[1741838633820,7.9605,125.62,125.59,176.224]
[1741838635398,0.03,125.63,125.59,191.36560777]
[1741838637125,0.03,125.63,125.59,176.224]
[1741838638327,15.14160777,125.62,125.59,176.224]
[1741838638501,15.14160777,125.61,125.59,176.224]
[1741838638826,15.14160777,125.62,125.59,176.224]
[1741838639126,15.14160777,125.62,125.59,176.287]
[1741838639622,15.14160777,125.62,125.59,41.087]
[1741838640310,33.79125663,125.6,125.59,41.087]
[1741838641819,34.07557977,125.6,125.59,0.0001]
[1741838642020,0.28432314,125.59,125.58,0.0001]
[1741838642232,23.38833091,125.59,125.58,0.0001]
[1741838643513,23.10400777,125.59,125.58,0.0001]
[1741838643728,41.75365663,125.59,125.58,0.0001]
[1741838644236,7.9624,125.59,125.58,0.0001]
[1741838644531,41.75365663,125.59,125.58,0.0001]
[1741838645408,42.03797977,125.59,125.58,0.0001]
[1741838648341,41.75365663,125.59,125.58,0.0001]
[1741838648511,42.03797977,125.59,125.58,0.0001]
[1741838650641,42.03797977,125.59,125.56,0.8952]
[1741838650642,23.38953091,125.57,125.56,0.0001]
[1741838651321,23.38953091,125.57,125.55,135.2]
[1741838651322,18.64964886,125.56,125.52,136.9228]
[1741838651526,15.14160777,125.55,125.52,136.9228]
[1741838652042,15.14160777,125.55,125.52,0.0631]
[1741838652228,15.14160777,125.53,125.52,0.0631]
[1741838652742,23.10780777,125.53,125.52,0.0631]
[1741838652956,41.75745663,125.53,125.52,0.0001]
[1741838653244,42.04177977,125.53,125.52,0.0001]
[1741838654150,41.75745663,125.53,125.52,0.0001]
[1741838654437,23.10780777,125.53,125.52,0.0001]
[1741838654614,7.9662,125.53,125.52,0.0001]
[1741838654818,7.9656,125.54,125.52,0.0001]
[1741838655132,23.10670777,125.55,125.52,0.0001]
[1741838656143,23.10670777,125.55,125.52,0.0002]
[1741838656450,31.65049128,125.55,125.52,0.0002]
[1741838657337,23.96971442,125.53,125.52,0.0001]
[1741838659029,31.65159128,125.53,125.52,0.0001]
[1741838659449,39.11591442,125.53,125.52,0.0001]
[1741838662346,15.1462,125.53,125.52,0.0001]
[1741838662522,57.48124014,125.53,125.52,0.0001]
[1741838666133,57.76556328,125.53,125.52,0.0001]
[1741838668357,34.080172,125.53,125.52,0.0001]
[1741838668557,57.76556328,125.53,125.52,0.0001]
[1741838671864,18.933972,125.52,125.47,0.0001]
[1741838672041,23.68539128,125.48,125.46,0.0631]
[1741838672244,23.68539128,125.47,125.46,0.0631]
[1741838674057,23.68539128,125.48,125.46,0.0631]
[1741838675147,7.97,125.47,125.46,0.0631]
[1741838680368,23.14685549,125.47,125.46,0.0631]
[1741838682373,7.97,125.47,125.46,0.0631]
[1741838683271,23.14685549,125.47,125.46,0.0631]
[1741838685665,7.97,125.47,125.46,0.0631]
[1741838685853,7.9689,125.49,125.46,0.0631]
[1741838686254,7.9683,125.5,125.46,15.23995549]
[1741838686677,26.61704886,125.51,125.47,15.17685549]
[1741838686868,26.61704886,125.51,125.47,135.2001]
[1741838687784,41.79390435,125.51,125.47,135.2001]
[1741838688279,41.79390435,125.51,125.47,135.2301]
[1741838688474,7.9674,125.51,125.47,150.40695549]
[1741838692677,7.967,125.52,125.48,15.17685549]
[1741838693981,23.14385549,125.52,125.47,164.42805549]
[1741838695181,23.14385549,125.52,125.47,156.45825549]
[1741838695780,23.14385549,125.52,125.47,141.2814]
[1741838695984,15.17685549,125.51,125.47,141.2814]
[1741838697464,7.9681,125.5,125.47,141.2814]
[1741838699585,7.9681,125.5,125.47,135.2301]
[1741838699766,23.14495549,125.5,125.47,135.2301]
[1741838699967,7.9681,125.5,125.47,135.2301]
[1741838700288,23.14495549,125.5,125.47,135.2301]
[1741838700496,15.17685549,125.48,125.47,0.0301]
[1741838700662,33.82650435,125.49,125.47,0.0301]
[1741838701291,18.64964886,125.49,125.47,0.0301]
[1741838701470,33.82650435,125.48,125.47,0.0301]
[1741838701674,41.79580435,125.48,125.47,0.0301]
[1741838702891,42.08012749,125.48,125.47,0.0301]
[1741838703265,42.08012749,125.48,125.47,0.03]
[1741838704092,18.933972,125.47,125.43,0.03]
[1741838704263,15.17685549,125.44,125.43,0.03]
[1741838704472,33.82650435,125.47,125.43,0.0301]
[1741838704684,33.82650435,125.47,125.43,135.2301]
[1741838704987,7.9719,125.44,125.43,135.2301]
[1741838705166,15.17685549,125.46,125.43,0.0301]
[1741838705372,23.14745549,125.46,125.43,0.0301]
[1741838706004,18.64964886,125.47,125.43,0.0301]
[1741838706005,41.79670435,125.47,125.43,0.0301]
[1741838706296,33.82650435,125.47,125.43,135.2301]
[1741838706502,15.17685549,125.46,125.43,135.2301]
[1741838707104,7.971,125.46,125.43,135.2301]
[1741838707574,23.14785549,125.46,125.43,135.2301]
[1741838709393,18.933972,125.45,125.43,135.2301]
[1741838709594,15.46117863,125.44,125.43,0.03]
[1741838709898,18.64964886,125.45,125.43,0.03]
[1741838710705,23.14785549,125.46,125.43,0.0301]
[1741838712386,7.971,125.46,125.43,0.0301]
[1741838712587,23.14785549,125.46,125.43,0.0301]
[1741838713800,8.0324,125.48,125.44,15.17685549]
[1741838714110,8.0324,125.48,125.44,150.37695549]
[1741838714680,8.0324,125.48,125.44,135.2001]
[1741838715106,33.82650435,125.47,125.44,135.2001]
[1741838715389,33.82650435,125.47,125.44,0.0001]
[1741838715589,15.17685549,125.46,125.44,0.0001]
[1741838716897,7.9713,125.45,125.44,0.0001]
[1741838725016,7.9713,125.45,125.44,0.0301]
[1741838725399,41.79780435,125.45,125.44,0.0301]
[1741838725595,0.28432314,125.44,125.43,0.03]
[1741838725811,15.46117863,125.44,125.43,0.03]
[1741838726919,94.81824945,125.44,125.39,217.63]
[1741838727098,15.17685549,125.4,125.39,82.43]
[1741838729100,23.15125549,125.4,125.39,82.43]
[1741838729299,7.9744,125.4,125.39,82.43]
[1741838730123,23.15025549,125.42,125.39,82.43]
[1741838730298,15.17685549,125.41,125.39,82.43]
[1741838731314,7.9744,125.4,125.39,82.43]
[1741838731639,15.17685549,125.42,125.39,82.43]
[1741838731820,49.12176592,125.43,125.39,82.43]
[1741838732629,23.14995549,125.43,125.39,82.43]
[1741838732807,7.9731,125.43,125.39,97.60685549]
[1741838734027,18.64964886,125.42,125.39,82.43]
[1741838734611,33.82650435,125.42,125.39,82.43]
[1741838734812,7.9738,125.41,125.39,82.43]
[1741838735833,23.15065549,125.41,125.39,82.43]
[1741838736136,7.9738,125.41,125.39,82.43]
[1741838738812,23.15065549,125.41,125.39,82.43]
[1741838739811,7.9738,125.41,125.39,82.43]
[1741838742139,23.15065549,125.41,125.39,82.43]
[1741838744943,7.9738,125.41,125.39,82.43]
[1741838746146,23.15065549,125.41,125.39,0.03]
[1741838748343,41.79990435,125.42,125.39,0.03]
[1741838748545,26.62304886,125.42,125.39,0.03]
[1741838748848,23.15025549,125.42,125.39,0.03]
[1741838750245,15.17685549,125.4,125.39,82.43]
[1741838751630,33.82650435,125.41,125.39,82.43]
[1741838752334,7.9744,125.4,125.39,82.43]
[1741838752539,23.15005549,125.42,125.39,82.43]
[1741838752947,15.17685549,125.41,125.39,82.43]
[1741838753144,33.82650435,125.41,125.39,82.43]
[1741838754648,7.9744,125.4,125.39,82.43]
[1741838757830,23.15065549,125.41,125.39,82.43]
[1741838759431,15.17685549,125.4,125.39,82.43]
[1741838760151,41.80030435,125.41,125.39,82.43]
[1741838761951,7.9738,125.41,125.39,82.43]
[1741838762331,23.15065549,125.41,125.39,82.43]
[1741838762549,15.17685549,125.4,125.39,82.43]
[1741838762756,23.15065549,125.41,125.39,82.43]
[1741838764665,15.17685549,125.42,125.39,82.43]
[1741838764840,0.063,125.43,125.39,232.80685549]
[1741838765233,8.0356,125.43,125.39,232.80685549]
[1741838766049,8.0356,125.43,125.39,217.63]
[1741838766242,33.82650435,125.42,125.39,217.63]
[1741838766437,15.17685549,125.41,125.39,217.63]
[1741838766844,33.82650435,125.4,125.39,82.43]
[1741838768241,7.9744,125.4,125.39,82.43]
[1741838768557,26.62404886,125.4,125.39,82.43]
[1741838768957,41.80090435,125.4,125.39,82.43]
[1741838769256,7.9744,125.4,125.39,82.43]
[1741838775962,26.62404886,125.4,125.39,82.43]
[1741838776262,18.64964886,125.39,125.36,135.23]
[1741838776558,33.82650435,125.39,125.36,217.63]
[1741838776959,15.17685549,125.37,125.36,217.63]
[1741838777955,26.62594886,125.37,125.36,217.63]
[1741838778258,15.17685549,125.38,125.36,217.63]
[1741838778449,23.15255549,125.38,125.36,217.63]
[1741838778844,33.82650435,125.37,125.36,217.63]
[1741838779057,18.64964886,125.37,125.36,217.63]
[1741838779342,18.64964886,125.37,125.36,0.03]
[1741838779557,33.82650435,125.37,125.36,0.03]
[1741838780244,41.80280435,125.37,125.36,0.03]
[1741838780450,26.62594886,125.37,125.36,0.03]
[1741838780741,18.64964886,125.37,125.36,0.03]
[1741838781132,7.9763,125.37,125.36,0.03]
[1741838781338,18.64964886,125.38,125.36,0.03]
[1741838782038,33.82650435,125.38,125.36,0.03]
[1741838782243,41.80270435,125.38,125.36,0.03]
[1741838783253,30.33215549,125.39,125.36,82.43]
[1741838783649,15.17685549,125.38,125.36,82.43]
[1741838783854,23.15215549,125.39,125.36,82.43]
[1741838784061,7.9753,125.39,125.36,82.43]
[1741838785067,23.15215549,125.39,125.36,82.43]
[1741838785365,18.64964886,125.38,125.36,82.43]
[1741838785668,33.82650435,125.38,125.36,82.43]
[1741838787171,7.9763,125.37,125.36,82.43]
[1741838789660,0.063,125.39,125.36,82.43]
[1741838790649,0.063,125.39,125.36,232.80685549]
[1741838791147,0.063,125.39,125.37,6.5463]
[1741838791454,0.063,125.39,125.38,15.17685549]
[1741838791845,0.063,125.39,125.37,21.72315549]
[1741838792059,0.063,125.39,125.37,6.5463]
[1741838792644,0.063,125.39,125.37,21.72315549]
[1741838793570,0.063,125.39,125.37,29.69945549]
[1741838794070,0.063,125.39,125.37,21.72315549]
[1741838795048,0.063,125.39,125.37,239.32315549]
[1741838796277,0.063,125.39,125.37,224.1463]
[1741838796452,0.063,125.39,125.37,239.32315549]
[1741838797065,0.063,125.39,125.37,239.35315549]
[1741838797474,0.063,125.39,125.37,224.1763]
[1741838797772,0.063,125.39,125.37,239.35315549]
[1741838797966,0.063,125.39,125.37,247.32945549]
[1741838798971,0.063,125.39,125.38,15.17685549]
[1741838799471,0.063,125.39,125.38,234.44115549]
[1741838800963,0.063,125.39,125.38,242.41685549]
[1741838801874,0.063,125.43,125.39,82.337]
[1741838802074,0.063,125.43,125.42,35.17685549]
[1741838802282,0.063,125.43,125.42,252.71385549]
[1741838803962,0.063,125.43,125.42,237.537]
[1741838806561,0.063,125.43,125.42,260.68705549]
[1741838807780,0.063,125.43,125.42,262.32965549]
[1741838808171,0.063,125.43,125.42,242.32965549]
[1741838808775,0.063,125.46,125.45,35.17685549]
[1741838809086,0.063,125.46,125.45,252.65085549]
[1741838809874,0.063,125.46,125.45,260.62215549]
[1741838810187,0.063,125.46,125.45,240.62215549]
[1741838810386,0.063,125.46,125.45,232.65085549]
[1741838810796,0.063,125.46,125.45,240.62215549]
[1741838811101,0.063,125.46,125.45,272.74706592]
[1741838811273,0.063,125.46,125.45,272.88922749]
[1741838813983,0.063,125.52,125.48,82.148]
[1741838814211,0.063,125.52,125.49,15.17685549]
[1741838814491,0.063,125.52,125.5,15.17685549]
[1741838814672,0.063,125.52,125.51,15.31901706]
[1741838814875,0.063,125.52,125.51,151.71357763]
[1741838815074,0.063,125.52,125.51,211.22643902]
[1741838815275,0.063,125.52,125.51,150.51901706]
[1741838816194,0.063,125.52,125.51,158.48641706]
[1741838816380,0.063,125.52,125.51,150.51901706]
[1741838816580,0.063,125.52,125.51,150.37685549]
[1741838817096,0.063,125.52,125.51,135.2]
[1741838817799,15.23985549,125.52,125.51,82.148]
[1741838818101,41.85630435,125.52,125.51,82.148]
[1741838820000,18.64964886,125.51,125.46,181.8866]
[1741838820303,23.70387196,125.5,125.46,174.7266]
[1741838820690,23.70387196,125.49,125.46,39.5266]
[1741838820896,23.70387196,125.48,125.46,39.5266]
[1741838821606,42.35352082,125.49,125.46,39.5266]
[1741838821994,7.97,125.47,125.46,39.5266]
[1741838823496,7.9693,125.48,125.46,39.5266]
[1741838825096,25.28807196,125.5,125.46,39.5266]
[1741838825903,33.25637196,125.5,125.46,39.5266]
[1741838826309,23.70387196,125.49,125.46,39.5266]
[1741838827109,33.25637196,125.5,125.46,39.5266]
[1741838828911,7.9683,125.5,125.46,63.23047196]
[1741838829294,7.9683,125.5,125.46,39.5266]
[1741838830113,31.67217196,125.5,125.46,174.7266]
[1741838833294,42.35352082,125.49,125.46,174.7266]
[1741838833902,42.35352082,125.49,125.46,174.7566]
[1741838835012,18.64964886,125.47,125.46,0.03]
[1741838835217,42.63784396,125.47,125.46,0.03]
[1741838837312,50.60784396,125.47,125.46,0.03]
[1741838839121,23.70387196,125.48,125.46,0.03]
[1741838839414,15.1289,125.49,125.46,0.03]
[1741838839615,38.83277196,125.49,125.46,0.03]
[1741838840908,18.64964886,125.5,125.46,63.26047196]
[1741838842517,18.64964886,125.5,125.46,71.23107196]
[1741838842725,0.063,125.51,125.48,23.70387196]
[1741838843019,0.063,125.51,125.5,43.70387196]
[1741838843221,0.063,125.51,125.5,174.7266]
[1741838847534,0.063,125.51,125.5,198.43047196]
[1741838848520,0.063,125.51,125.5,206.39857196]
[1741838848710,0.063,125.51,125.5,214.19237196]
[1741838851130,0.063,125.51,125.5,174.7266]
[1741838852832,0.063,125.51,125.5,39.5266]
[1741838853805,50.38392082,125.51,125.5,39.5266]
[1741838854126,50.66824396,125.51,125.5,39.5266]
[1741838856411,50.66824396,125.51,125.46,39.5566]
[1741838856616,23.70387196,125.5,125.46,39.5566]
[1741838857733,7.9687,125.49,125.46,39.5566]
[1741838859732,7.9681,125.5,125.46,39.5566]
[1741838861735,31.67197196,125.5,125.46,39.5566]
[1741838861932,7.9681,125.5,125.46,39.5566]
[1741838863942,42.35352082,125.49,125.46,39.5566]
[1741838864126,42.35352082,125.47,125.46,0.03]
[1741838864332,33.82902823,125.47,125.46,0.03]
[1741838864730,35.73315137,125.47,125.46,0.03]
[1741838865833,35.44882823,125.47,125.46,0.03]
[1741838866034,43.41882823,125.47,125.46,0.03]
[1741838866344,28.23944886,125.47,125.46,0.03]
[1741838867539,9.5898,125.47,125.46,0.03]
[1741838867719,7.9695,125.48,125.46,0.03]
[1741838868541,31.68327316,125.49,125.46,0.03]
[1741838868946,26.61854886,125.49,125.46,0.03]
[1741838869342,50.33292202,125.49,125.46,0.03]
[1741838869720,23.71437316,125.48,125.46,0.03]
[1741838870322,7.97,125.47,125.46,0.03]
[1741838872337,50.33402202,125.47,125.46,0.03]
[1741838880158,26.61964886,125.47,125.46,0.03]
[1741838880458,50.33402202,125.47,125.46,0.03]
[1741838882665,50.61834516,125.47,125.46,0.03]
[1741838882830,50.61834516,125.47,125.44,39.5266]
[1741838882831,0.28432314,125.45,125.4,174.7266]